[Event "Titled Tuesday Blitz April 4 Early 2023"]
[White "Kaczur, Florian"]
[Black "Simonovic, Miroslav"]
[WhiteFideId "705098"]
[BlackFideId "919152"]
[WhiteElo "2485"]
[BlackElo "2042"]
[Result "1-0"]
[Round "04"]
[TimeControl "180+2"]
[Date "2023.04.04"]
[WhiteClock "0:01:04"]
[BlackClock "0:01:11"]

1. d4 {[%clk 0:02:56]}  Nf6 {[%clk 0:02:59]} 2. c4 {[%clk 0:02:55]}  c5 {[%clk 0:02:59]} 3. dxc5 {[%clk 0:02:51]}  e6 {[%clk 0:02:59]} 4. Nf3 {[%clk 0:02:48]}  Bxc5 {[%clk 0:02:59]} 5. Nc3 {[%clk 0:02:47]}  O-O {[%clk 0:02:59]} 6. g3 {[%clk 0:02:42]}  d5 {[%clk 0:02:57]} 7. cxd5 {[%clk 0:02:40]}  Nxd5 {[%clk 0:02:58]} 8. Nxd5 {[%clk 0:02:35]}  Qxd5 {[%clk 0:02:59]} 9. Qxd5 {[%clk 0:02:32]}  exd5 {[%clk 0:03:00]} 10. Bg2 {[%clk 0:02:32]}  Nc6 {[%clk 0:02:57]} 11. O-O {[%clk 0:02:31]}  d4 {[%clk 0:02:54]} 12. Bd2 {[%clk 0:02:26]}  Be6 {[%clk 0:02:48]} 13. Rfc1 {[%clk 0:02:24]}  Bb6 {[%clk 0:02:46]} 14. Ng5 {[%clk 0:02:22]}  Bd7 {[%clk 0:02:40]} 15. Be4 {[%clk 0:02:17]}  h6 {[%clk 0:02:39]} 16. Nf3 {[%clk 0:02:16]}  Rfe8 {[%clk 0:02:32]} 17. Bd3 {[%clk 0:02:15]}  a6 {[%clk 0:02:14]} 18. Rc2 {[%clk 0:02:09]}  Bg4 {[%clk 0:01:42]} 19. Kg2 {[%clk 0:01:51]}  Ne5 {[%clk 0:01:33]} 20. Nxe5 {[%clk 0:01:49]}  Rxe5 {[%clk 0:01:34]} 21. Bf4 {[%clk 0:01:40]}  Re7 {[%clk 0:01:34]} 22. Rac1 {[%clk 0:01:37]}  Rae8 {[%clk 0:01:29]} 23. f3 {[%clk 0:01:28]}  Be6 {[%clk 0:01:21]} 24. Bc7 {[%clk 0:01:06]}  Bxc7 {[%clk 0:01:13]} 25. Rxc7 {[%clk 0:01:06]}  Bxa2 {[%clk 0:01:10]} 26. Rxe7 {[%clk 0:01:05]}  Rxe7 {[%clk 0:01:11]} 27. Rc8+ {[%clk 0:01:04]} 1-0


[Site "https://www.chess.com"]

[Event "Titled Tuesday Blitz April 4 Early 2023"]
[White "Sankalan Shah"]
[Black "Okike, David"]
[WhiteFideId "25600362"]
[BlackFideId "8500134"]
[WhiteElo "2118"]
[BlackElo "2232"]
[Result "0-1"]
[Round "04"]
[TimeControl "180+2"]
[Date "2023.04.04"]
[WhiteClock "0:00:16"]
[BlackClock "0:01:18"]

1. d4 {[%clk 0:02:56]}  Nf6 {[%clk 0:02:59]} 2. c4 {[%clk 0:02:44]}  e6 {[%clk 0:02:58]} 3. Nf3 {[%clk 0:02:44]}  Bb4+ {[%clk 0:02:57]} 4. Bd2 {[%clk 0:02:41]}  a5 {[%clk 0:02:56]} 5. g3 {[%clk 0:02:40]}  b6 {[%clk 0:02:54]} 6. Bg2 {[%clk 0:02:40]}  Ba6 {[%clk 0:02:53]} 7. Qc2 {[%clk 0:02:39]}  c6 {[%clk 0:02:52]} 8. O-O {[%clk 0:02:36]}  O-O {[%clk 0:02:52]} 9. b3 {[%clk 0:02:28]}  d5 {[%clk 0:02:51]} 10. Ne5 {[%clk 0:02:20]}  Nfd7 {[%clk 0:02:49]} 11. Nd3 {[%clk 0:02:18]}  Be7 {[%clk 0:02:47]} 12. Bf4 {[%clk 0:02:11]}  Nf6 {[%clk 0:02:45]} 13. Nd2 {[%clk 0:02:07]}  Nbd7 {[%clk 0:02:45]} 14. cxd5 {[%clk 0:01:58]}  cxd5 {[%clk 0:02:44]} 15. Bc7 {[%clk 0:01:56]}  Qe8 {[%clk 0:02:43]} 16. Rac1 {[%clk 0:01:44]}  Ba3 {[%clk 0:02:39]} 17. Nb2 {[%clk 0:01:05]}  Rc8 {[%clk 0:02:28]} 18. Qb1 {[%clk 0:00:58]}  Bxe2 {[%clk 0:02:26]} 19. Rfe1 {[%clk 0:00:57]}  Ba6 {[%clk 0:02:24]} 20. Bf4 {[%clk 0:00:56]}  h6 {[%clk 0:02:16]} 21. Rxc8 {[%clk 0:00:46]}  Qxc8 {[%clk 0:02:14]} 22. Nd3 {[%clk 0:00:47]}  g5 {[%clk 0:02:08]} 23. Be3 {[%clk 0:00:41]}  Ng4 {[%clk 0:01:50]} 24. Ne5 {[%clk 0:00:27]}  Ndxe5 {[%clk 0:01:40]} 25. dxe5 {[%clk 0:00:27]}  Nxe3 {[%clk 0:01:37]} 26. fxe3 {[%clk 0:00:25]}  Qc3 {[%clk 0:01:35]} 27. Nf3 {[%clk 0:00:24]}  Bd3 {[%clk 0:01:24]} 28. Qd1 {[%clk 0:00:20]}  Bb4 {[%clk 0:01:22]} 29. Bf1 {[%clk 0:00:17]}  Be4 {[%clk 0:01:19]} 30. Nd4 {[%clk 0:00:16]}  Qxe1 {[%clk 0:01:18]} 0-1


[Site "https://www.chess.com"]

[Event "Titled Tuesday Blitz April 4 Early 2023"]
[White "Dahlgren, James Allen"]
[Black "Hoffmann, Asa"]
[WhiteFideId "22256873"]
[BlackFideId "2001470"]
[WhiteElo "2193"]
[BlackElo "2117"]
[Result "0-1"]
[Round "04"]
[TimeControl "180+2"]
[Date "2023.04.04"]
[WhiteClock "0:00:02"]
[BlackClock "0:01:05"]

1. e4 {[%clk 0:02:59]}  d6 {[%clk 0:02:40]} 2. d4 {[%clk 0:02:59]}  Nf6 {[%clk 0:02:38]} 3. Nc3 {[%clk 0:02:58]}  c6 {[%clk 0:02:37]} 4. f4 {[%clk 0:02:56]}  Qa5 {[%clk 0:02:35]} 5. Nf3 {[%clk 0:02:55]}  Nxe4 {[%clk 0:02:34]} 6. Bd2 {[%clk 0:02:54]}  Nxd2 {[%clk 0:02:32]} 7. Qxd2 {[%clk 0:02:55]}  Bf5 {[%clk 0:02:32]} 8. Bd3 {[%clk 0:02:50]}  e6 {[%clk 0:02:30]} 9. O-O-O {[%clk 0:02:47]}  Nd7 {[%clk 0:02:29]} 10. Kb1 {[%clk 0:02:45]}  Be7 {[%clk 0:02:22]} 11. h3 {[%clk 0:02:30]}  Qc7 {[%clk 0:02:15]} 12. Bxf5 {[%clk 0:02:28]}  exf5 {[%clk 0:02:14]} 13. Rhe1 {[%clk 0:02:27]}  Nf6 {[%clk 0:02:12]} 14. Qe2 {[%clk 0:02:01]}  Kf8 {[%clk 0:02:05]} 15. Rd3 {[%clk 0:01:52]}  Re8 {[%clk 0:02:04]} 16. Re3 {[%clk 0:01:52]}  g6 {[%clk 0:01:56]} 17. d5 {[%clk 0:01:39]}  c5 {[%clk 0:01:48]} 18. Nb5 {[%clk 0:01:22]}  Qd7 {[%clk 0:01:47]} 19. c4 {[%clk 0:01:23]}  Ne4 {[%clk 0:01:39]} 20. Nxa7 {[%clk 0:00:58]}  Bf6 {[%clk 0:01:35]} 21. Ng5 {[%clk 0:00:48]}  Bxg5 {[%clk 0:01:29]} 22. fxg5 {[%clk 0:00:47]}  Kg7 {[%clk 0:01:29]} 23. Nb5 {[%clk 0:00:42]}  h6 {[%clk 0:01:27]} 24. gxh6+ {[%clk 0:00:32]}  Rxh6 {[%clk 0:01:27]} 25. Ka1 {[%clk 0:00:21]}  Re5 {[%clk 0:01:21]} 26. Qd3 {[%clk 0:00:14]}  Rh8 {[%clk 0:01:19]} 27. Nc3 {[%clk 0:00:11]}  Nxc3 {[%clk 0:01:14]} 28. Rxe5 {[%clk 0:00:10]}  dxe5 {[%clk 0:01:12]} 29. Qxc3 {[%clk 0:00:10]}  f6 {[%clk 0:01:12]} 30. Qb3 {[%clk 0:00:08]}  Re8 {[%clk 0:01:08]} 31. Rd1 {[%clk 0:00:08]}  e4 {[%clk 0:01:07]} 32. d6 {[%clk 0:00:07]}  e3 {[%clk 0:01:07]} 33. Qd3 {[%clk 0:00:04]}  Re6 {[%clk 0:01:05]} 34. a3 {[%clk 0:00:02]}  f4 {[%clk 0:01:05]} 0-1


[Site "https://www.chess.com"]

[Event "Titled Tuesday Blitz April 4 Early 2023"]
[White "Larina, Maria"]
[Black "Itkis, Boris"]
[WhiteFideId "24113182"]
[BlackFideId "1209167"]
[WhiteElo "1848"]
[BlackElo "2216"]
[Result "1-0"]
[Round "04"]
[TimeControl "180+2"]
[Date "2023.04.04"]
[WhiteClock "0:01:00"]
[BlackClock "0:00:11"]

1. e4 {[%clk 0:03:00]}  e6 {[%clk 0:03:00]} 2. d4 {[%clk 0:03:00]}  d5 {[%clk 0:03:00]} 3. Nc3 {[%clk 0:02:58]}  Nf6 {[%clk 0:02:59]} 4. Bg5 {[%clk 0:02:58]}  dxe4 {[%clk 0:02:55]} 5. Nxe4 {[%clk 0:02:57]}  Nbd7 {[%clk 0:02:55]} 6. Nf3 {[%clk 0:02:56]}  Be7 {[%clk 0:02:55]} 7. Bxf6 {[%clk 0:02:49]}  Nxf6 {[%clk 0:02:56]} 8. Nxf6+ {[%clk 0:02:46]}  Bxf6 {[%clk 0:02:57]} 9. c3 {[%clk 0:02:42]}  O-O {[%clk 0:02:55]} 10. Bd3 {[%clk 0:02:40]}  c5 {[%clk 0:02:37]} 11. dxc5 {[%clk 0:02:39]}  Qa5 {[%clk 0:02:37]} 12. O-O {[%clk 0:02:31]}  Qxc5 {[%clk 0:02:37]} 13. Qe2 {[%clk 0:02:30]}  g6 {[%clk 0:02:30]} 14. Rfe1 {[%clk 0:02:27]}  b6 {[%clk 0:02:06]} 15. Be4 {[%clk 0:02:20]}  Rb8 {[%clk 0:02:06]} 16. Rad1 {[%clk 0:02:14]}  Bb7 {[%clk 0:01:57]} 17. Bxb7 {[%clk 0:02:13]}  Rxb7 {[%clk 0:01:57]} 18. Qe4 {[%clk 0:02:11]}  Rc7 {[%clk 0:01:45]} 19. Ne5 {[%clk 0:02:03]}  Qxe5 {[%clk 0:01:23]} 20. Qxe5 {[%clk 0:02:03]}  Bxe5 {[%clk 0:01:23]} 21. Rxe5 {[%clk 0:02:04]}  Rfc8 {[%clk 0:01:14]} 22. f3 {[%clk 0:01:54]}  Kf8 {[%clk 0:01:14]} 23. Kf2 {[%clk 0:01:53]}  Ke7 {[%clk 0:01:14]} 24. h4 {[%clk 0:01:46]}  Rd8 {[%clk 0:01:01]} 25. Ree1 {[%clk 0:01:43]}  Rcd7 {[%clk 0:01:00]} 26. Ke2 {[%clk 0:01:41]}  Rd5 {[%clk 0:00:53]} 27. Rxd5 {[%clk 0:01:34]}  Rxd5 {[%clk 0:00:54]} 28. Rd1 {[%clk 0:01:35]}  Ra5 {[%clk 0:00:50]} 29. a3 {[%clk 0:01:35]}  h5 {[%clk 0:00:51]} 30. Ke3 {[%clk 0:01:34]}  Re5+ {[%clk 0:00:49]} 31. Kf2 {[%clk 0:01:31]}  Rb5 {[%clk 0:00:47]} 32. Rd2 {[%clk 0:01:31]}  a5 {[%clk 0:00:45]} 33. a4 {[%clk 0:01:30]}  Rc5 {[%clk 0:00:40]} 34. g3 {[%clk 0:01:29]}  Rc4 {[%clk 0:00:39]} 35. Rd4 {[%clk 0:01:29]}  Rxd4 {[%clk 0:00:33]} 36. cxd4 {[%clk 0:01:30]}  Kd6 {[%clk 0:00:34]} 37. Ke3 {[%clk 0:01:27]}  Kd5 {[%clk 0:00:35]} 38. Kd3 {[%clk 0:01:27]}  f6 {[%clk 0:00:35]} 39. b3 {[%clk 0:01:27]}  g5 {[%clk 0:00:32]} 40. Ke3 {[%clk 0:01:25]}  gxh4 {[%clk 0:00:18]} 41. gxh4 {[%clk 0:01:26]}  e5 {[%clk 0:00:19]} 42. dxe5 {[%clk 0:01:23]}  fxe5 {[%clk 0:00:19]} 43. Kd3 {[%clk 0:01:22]}  Kc5 {[%clk 0:00:19]} 44. Ke4 {[%clk 0:01:01]}  Kb4 {[%clk 0:00:18]} 45. Kxe5 {[%clk 0:01:01]}  Kxb3 {[%clk 0:00:19]} 46. f4 {[%clk 0:01:01]}  Kxa4 {[%clk 0:00:12]} 47. f5 {[%clk 0:01:02]}  b5 {[%clk 0:00:13]} 48. f6 {[%clk 0:01:02]}  b4 {[%clk 0:00:14]} 49. f7 {[%clk 0:01:03]}  b3 {[%clk 0:00:14]} 50. f8=Q {[%clk 0:01:03]}  b2 {[%clk 0:00:15]} 51. Qb8 {[%clk 0:01:01]}  Ka3 {[%clk 0:00:16]} 52. Qd6+ {[%clk 0:01:00]}  Ka2 {[%clk 0:00:15]} 53. Qd5+ {[%clk 0:01:00]}  Kb1 {[%clk 0:00:06]} 54. Qxa5 {[%clk 0:01:00]}  Kc1 {[%clk 0:00:07]} 55. Qc3+ {[%clk 0:00:59]}  Kb1 {[%clk 0:00:06]} 56. Kf4 {[%clk 0:00:59]}  Ka2 {[%clk 0:00:06]} 57. Qc4+ {[%clk 0:00:59]}  Ka3 {[%clk 0:00:06]} 58. Qa6+ {[%clk 0:00:58]}  Kb4 {[%clk 0:00:06]} 59. Qb6+ {[%clk 0:00:58]}  Kc3 {[%clk 0:00:06]} 60. Kg5 {[%clk 0:00:59]}  Kc2 {[%clk 0:00:05]} 61. Kxh5 {[%clk 0:00:58]}  b1=Q {[%clk 0:00:05]} 62. Qxb1+ {[%clk 0:00:58]}  Kxb1 {[%clk 0:00:06]} 63. Kg6 {[%clk 0:00:58]}  Kc2 {[%clk 0:00:07]} 64. h5 {[%clk 0:00:59]}  Kd3 {[%clk 0:00:08]} 65. h6 {[%clk 0:01:00]}  Ke4 {[%clk 0:00:09]} 66. h7 {[%clk 0:01:00]}  Ke5 {[%clk 0:00:10]} 67. h8=Q+ {[%clk 0:01:01]}  Ke6 {[%clk 0:00:11]} 68. Qf8 {[%clk 0:01:00]} 1-0


[Site "https://www.chess.com"]

[Event "Titled Tuesday Blitz April 4 Early 2023"]
[White "Nery Junior, Jose Antonio"]
[Black "Tuleyeva-Aketayeva, Dana"]
[WhiteFideId "2104822"]
[BlackFideId "13701932"]
[WhiteElo "2197"]
[BlackElo "2030"]
[Result "1-0"]
[Round "04"]
[TimeControl "180+2"]
[Date "2023.04.04"]
[WhiteClock "0:00:44"]
[BlackClock "0:00:01"]

1. e4 {[%clk 0:03:00]}  c5 {[%clk 0:02:59]} 2. Nf3 {[%clk 0:03:00]}  Nc6 {[%clk 0:02:59]} 3. d4 {[%clk 0:03:01]}  cxd4 {[%clk 0:03:00]} 4. Nxd4 {[%clk 0:03:02]}  g6 {[%clk 0:03:01]} 5. Nc3 {[%clk 0:03:02]}  Bg7 {[%clk 0:03:01]} 6. Nxc6 {[%clk 0:03:03]}  bxc6 {[%clk 0:02:58]} 7. Bc4 {[%clk 0:03:03]}  d6 {[%clk 0:02:56]} 8. Qf3 {[%clk 0:03:02]}  Nf6 {[%clk 0:02:56]} 9. e5 {[%clk 0:03:03]}  dxe5 {[%clk 0:02:45]} 10. Qxc6+ {[%clk 0:03:02]}  Bd7 {[%clk 0:02:45]} 11. Qa6 {[%clk 0:03:02]}  O-O {[%clk 0:02:40]} 12. O-O {[%clk 0:03:01]}  Bf5 {[%clk 0:02:34]} 13. Bb3 {[%clk 0:03:00]}  Qd6 {[%clk 0:02:27]} 14. Qa5 {[%clk 0:02:40]}  e4 {[%clk 0:02:17]} 15. h3 {[%clk 0:02:39]}  Rfc8 {[%clk 0:01:31]} 16. Be3 {[%clk 0:02:38]}  e6 {[%clk 0:01:15]} 17. Rfd1 {[%clk 0:02:33]}  Qe7 {[%clk 0:01:03]} 18. Rd2 {[%clk 0:02:20]}  h5 {[%clk 0:01:01]} 19. Rad1 {[%clk 0:02:20]}  Kh7 {[%clk 0:00:39]} 20. Qa6 {[%clk 0:02:05]}  Rd8 {[%clk 0:00:32]} 21. a4 {[%clk 0:01:52]}  Rxd2 {[%clk 0:00:31]} 22. Rxd2 {[%clk 0:01:53]}  e5 {[%clk 0:00:20]} 23. a5 {[%clk 0:01:40]}  h4 {[%clk 0:00:20]} 24. Qc6 {[%clk 0:01:22]}  Rc8 {[%clk 0:00:17]} 25. Qa6 {[%clk 0:01:17]}  Ra8 {[%clk 0:00:14]} 26. Qd6 {[%clk 0:01:14]}  Qxd6 {[%clk 0:00:13]} 27. Rxd6 {[%clk 0:01:15]}  Rb8 {[%clk 0:00:08]} 28. Bxa7 {[%clk 0:01:13]}  Ra8 {[%clk 0:00:07]} 29. Bb6 {[%clk 0:01:13]}  e3 {[%clk 0:00:07]} 30. fxe3 {[%clk 0:01:10]}  Ne4 {[%clk 0:00:07]} 31. Nxe4 {[%clk 0:01:09]}  Bxe4 {[%clk 0:00:07]} 32. c3 {[%clk 0:01:07]}  f5 {[%clk 0:00:06]} 33. Bf7 {[%clk 0:00:59]}  f4 {[%clk 0:00:02]} 34. b4 {[%clk 0:00:49]}  f3 {[%clk 0:00:02]} 35. gxf3 {[%clk 0:00:47]}  Bxf3 {[%clk 0:00:01]} 36. Bxg6+ {[%clk 0:00:48]}  Kh8 {[%clk 0:00:01]} 37. e4 {[%clk 0:00:44]} 1-0


[Site "https://www.chess.com"]

[Event "Titled Tuesday Blitz April 4 Early 2023"]
[White "Zampronha, Wladimir Camilo"]
[Black "dDobravcan"]
[WhiteFideId "2103087"]
[WhiteElo "2176"]
[BlackElo "2143"]
[Result "1-0"]
[Round "04"]
[TimeControl "180+2"]
[Date "2023.04.04"]
[WhiteClock "0:00:20"]
[BlackClock "0:00:01"]

1. e4 {[%clk 0:03:00]}  d5 {[%clk 0:02:59]} 2. exd5 {[%clk 0:03:00]}  Nf6 {[%clk 0:02:59]} 3. c4 {[%clk 0:02:57]}  e6 {[%clk 0:02:58]} 4. dxe6 {[%clk 0:02:54]}  Bxe6 {[%clk 0:02:58]} 5. d4 {[%clk 0:02:53]}  Qe7 {[%clk 0:02:51]} 6. Be3 {[%clk 0:02:48]}  Nc6 {[%clk 0:02:46]} 7. Nf3 {[%clk 0:02:47]}  O-O-O {[%clk 0:02:43]} 8. Nc3 {[%clk 0:02:47]}  Qb4 {[%clk 0:02:15]} 9. Qb3 {[%clk 0:02:45]}  Ne4 {[%clk 0:02:15]} 10. Qxb4 {[%clk 0:02:30]}  Bxb4 {[%clk 0:02:13]} 11. Rc1 {[%clk 0:02:30]}  Bg4 {[%clk 0:01:55]} 12. d5 {[%clk 0:02:26]}  Nxc3 {[%clk 0:01:21]} 13. bxc3 {[%clk 0:02:24]}  Ba3 {[%clk 0:01:21]} 14. dxc6 {[%clk 0:02:11]}  Bxc1 {[%clk 0:01:16]} 15. cxb7+ {[%clk 0:02:11]}  Kxb7 {[%clk 0:01:13]} 16. Bxc1 {[%clk 0:02:12]}  Rhe8+ {[%clk 0:01:10]} 17. Be2 {[%clk 0:02:05]}  Re4 {[%clk 0:01:04]} 18. Be3 {[%clk 0:01:56]}  f5 {[%clk 0:01:02]} 19. Nd2 {[%clk 0:01:48]}  Re6 {[%clk 0:00:52]} 20. Bxg4 {[%clk 0:01:46]}  fxg4 {[%clk 0:00:52]} 21. Kd1 {[%clk 0:01:33]}  Ra6 {[%clk 0:00:49]} 22. Ke2 {[%clk 0:01:24]}  Rxa2 {[%clk 0:00:47]} 23. h3 {[%clk 0:01:25]}  gxh3 {[%clk 0:00:40]} 24. Rxh3 {[%clk 0:01:24]}  h6 {[%clk 0:00:40]} 25. Rh5 {[%clk 0:01:23]}  a5 {[%clk 0:00:31]} 26. Rb5+ {[%clk 0:01:21]}  Kc8 {[%clk 0:00:29]} 27. Bd4 {[%clk 0:01:19]}  a4 {[%clk 0:00:26]} 28. Ke3 {[%clk 0:01:15]}  Re8+ {[%clk 0:00:22]} 29. Kd3 {[%clk 0:01:13]}  a3 {[%clk 0:00:19]} 30. Ne4 {[%clk 0:01:12]}  g6 {[%clk 0:00:16]} 31. Ra5 {[%clk 0:01:12]}  h5 {[%clk 0:00:13]} 32. Nc5 {[%clk 0:01:13]}  Kb8 {[%clk 0:00:11]} 33. Rb5+ {[%clk 0:01:08]}  Kc8 {[%clk 0:00:10]} 34. g3 {[%clk 0:01:03]}  Ree2 {[%clk 0:00:08]} 35. Be3 {[%clk 0:00:55]}  Rab2 {[%clk 0:00:07]} 36. Ra5 {[%clk 0:00:54]}  a2 {[%clk 0:00:07]} 37. Ra8+ {[%clk 0:00:54]}  Rb8 {[%clk 0:00:06]} 38. Ra3 {[%clk 0:00:50]}  Reb2 {[%clk 0:00:02]} 39. Na4 {[%clk 0:00:43]}  R8b3 {[%clk 0:00:01]} 40. Nb6+ {[%clk 0:00:20]} 1-0


[Site "https://www.chess.com"]

[Event "Titled Tuesday Blitz April 4 Early 2023"]
[White "Slayyy_200"]
[Black "Theytookourjobs"]
[WhiteElo "2101"]
[BlackElo "2306"]
[Result "0-1"]
[Round "04"]
[TimeControl "180+2"]
[Date "2023.04.04"]
[WhiteClock "0:00:11"]
[BlackClock "0:00:39"]

1. e4 {[%clk 0:02:58]}  e6 {[%clk 0:02:58]} 2. d3 {[%clk 0:02:53]}  c5 {[%clk 0:02:51]} 3. Nd2 {[%clk 0:02:54]}  Nc6 {[%clk 0:02:51]} 4. g3 {[%clk 0:02:53]}  Nge7 {[%clk 0:02:38]} 5. Bg2 {[%clk 0:02:54]}  e5 {[%clk 0:02:34]} 6. Ngf3 {[%clk 0:02:55]}  d6 {[%clk 0:02:35]} 7. O-O {[%clk 0:02:54]}  Nd4 {[%clk 0:02:33]} 8. Nxd4 {[%clk 0:02:47]}  cxd4 {[%clk 0:02:32]} 9. a4 {[%clk 0:02:43]}  Nc6 {[%clk 0:02:31]} 10. f4 {[%clk 0:02:41]}  Be7 {[%clk 0:02:23]} 11. f5 {[%clk 0:02:33]}  Bg5 {[%clk 0:02:17]} 12. Qh5 {[%clk 0:02:27]}  Be3+ {[%clk 0:02:02]} 13. Kh1 {[%clk 0:02:26]}  Qg5 {[%clk 0:02:03]} 14. Qxg5 {[%clk 0:02:20]}  Bxg5 {[%clk 0:02:03]} 15. Nc4 {[%clk 0:02:20]}  Bxc1 {[%clk 0:02:01]} 16. Nxd6+ {[%clk 0:02:16]}  Kd7 {[%clk 0:01:55]} 17. Nxf7 {[%clk 0:02:12]}  Rf8 {[%clk 0:01:39]} 18. Nxe5+ {[%clk 0:02:00]}  Nxe5 {[%clk 0:01:40]} 19. Raxc1 {[%clk 0:02:00]}  Kd6 {[%clk 0:01:36]} 20. h3 {[%clk 0:01:51]}  a5 {[%clk 0:01:34]} 21. g4 {[%clk 0:01:51]}  Bd7 {[%clk 0:01:33]} 22. b3 {[%clk 0:01:49]}  h6 {[%clk 0:01:33]} 23. Kh2 {[%clk 0:01:46]}  Rac8 {[%clk 0:01:32]} 24. Kg3 {[%clk 0:01:46]}  Rc3 {[%clk 0:01:05]} 25. Bf3 {[%clk 0:01:11]}  Rfc8 {[%clk 0:00:52]} 26. f6 {[%clk 0:00:27]}  gxf6 {[%clk 0:00:49]} 27. Bd1 {[%clk 0:00:22]}  Nxd3 {[%clk 0:00:40]} 28. cxd3 {[%clk 0:00:11]}  Rxc1 {[%clk 0:00:40]} 29. Rxf6+ {[%clk 0:00:10]}  Ke7 {[%clk 0:00:39]} 30. Rxh6 {[%clk 0:00:11]}  Rxd1 {[%clk 0:00:39]} 0-1


[Site "https://www.chess.com"]

[Event "Titled Tuesday Blitz April 4 Early 2023"]
[White "Winkels, Marcel"]
[Black "MunichMouse"]
[WhiteFideId "1003887"]
[WhiteElo "1900"]
[BlackElo "2301"]
[Result "1-0"]
[Round "04"]
[TimeControl "180+2"]
[Date "2023.04.04"]
[WhiteClock "0:00:07"]
[BlackClock "0:01:09"]

1. d4 {[%clk 0:03:00]}  Nf6 {[%clk 0:02:59]} 2. Nc3 {[%clk 0:03:00]}  g6 {[%clk 0:03:00]} 3. e4 {[%clk 0:02:58]}  d5 {[%clk 0:03:01]} 4. exd5 {[%clk 0:02:53]}  Nxd5 {[%clk 0:03:01]} 5. Bc4 {[%clk 0:02:53]}  c6 {[%clk 0:03:00]} 6. Nf3 {[%clk 0:02:46]}  Bg7 {[%clk 0:03:00]} 7. h3 {[%clk 0:02:45]}  Nxc3 {[%clk 0:03:00]} 8. bxc3 {[%clk 0:02:44]}  O-O {[%clk 0:03:00]} 9. O-O {[%clk 0:02:43]}  Nd7 {[%clk 0:02:57]} 10. Re1 {[%clk 0:02:38]}  e6 {[%clk 0:02:56]} 11. Rb1 {[%clk 0:02:33]}  h6 {[%clk 0:02:56]} 12. Bf4 {[%clk 0:02:28]}  Qa5 {[%clk 0:02:55]} 13. Qd2 {[%clk 0:02:20]}  Kh7 {[%clk 0:02:55]} 14. Ne5 {[%clk 0:02:11]}  Nxe5 {[%clk 0:02:53]} 15. Bxe5 {[%clk 0:02:10]}  b6 {[%clk 0:02:49]} 16. Re3 {[%clk 0:01:43]}  Ba6 {[%clk 0:02:46]} 17. Bd3 {[%clk 0:01:22]}  Qxa2 {[%clk 0:02:39]} 18. Qe1 {[%clk 0:01:11]}  Bxd3 {[%clk 0:02:38]} 19. cxd3 {[%clk 0:01:01]}  Qd5 {[%clk 0:02:37]} 20. c4 {[%clk 0:00:59]}  Qd7 {[%clk 0:02:36]} 21. Qe2 {[%clk 0:00:50]}  Bxe5 {[%clk 0:02:31]} 22. dxe5 {[%clk 0:00:49]}  c5 {[%clk 0:02:30]} 23. Rf3 {[%clk 0:00:47]}  Qd4 {[%clk 0:02:23]} 24. g3 {[%clk 0:00:39]}  Rad8 {[%clk 0:02:19]} 25. Rd1 {[%clk 0:00:36]}  Rd7 {[%clk 0:02:18]} 26. Rf4 {[%clk 0:00:35]}  Qc3 {[%clk 0:02:17]} 27. Qf3 {[%clk 0:00:31]}  Kg7 {[%clk 0:02:10]} 28. Qe4 {[%clk 0:00:26]}  Rd4 {[%clk 0:02:07]} 29. Qe3 {[%clk 0:00:26]}  Rxf4 {[%clk 0:02:07]} 30. Qxf4 {[%clk 0:00:26]}  Qd4 {[%clk 0:02:07]} 31. Qf6+ {[%clk 0:00:25]}  Kg8 {[%clk 0:02:07]} 32. Kg2 {[%clk 0:00:22]}  Qd8 {[%clk 0:02:05]} 33. Qf4 {[%clk 0:00:21]}  Qg5 {[%clk 0:02:05]} 34. Qxg5 {[%clk 0:00:19]}  hxg5 {[%clk 0:02:05]} 35. Kf3 {[%clk 0:00:19]}  Ra8 {[%clk 0:02:03]} 36. Kg4 {[%clk 0:00:18]}  a5 {[%clk 0:01:57]} 37. Kxg5 {[%clk 0:00:18]}  Kg7 {[%clk 0:01:58]} 38. Rb1 {[%clk 0:00:17]}  Ra6 {[%clk 0:01:57]} 39. Kf4 {[%clk 0:00:14]}  a4 {[%clk 0:01:58]} 40. Ke4 {[%clk 0:00:14]}  a3 {[%clk 0:01:58]} 41. Ra1 {[%clk 0:00:12]}  a2 {[%clk 0:01:59]} 42. d4 {[%clk 0:00:12]}  Ra3 {[%clk 0:01:59]} 43. d5 {[%clk 0:00:11]}  exd5+ {[%clk 0:01:54]} 44. cxd5 {[%clk 0:00:11]}  Kf8 {[%clk 0:01:55]} 45. d6 {[%clk 0:00:11]}  Ke8 {[%clk 0:01:53]} 46. Kd5 {[%clk 0:00:11]}  Kd7 {[%clk 0:01:53]} 47. Kc4 {[%clk 0:00:10]}  Ke6 {[%clk 0:01:39]} 48. f4 {[%clk 0:00:10]}  g5 {[%clk 0:01:31]} 49. Kb5 {[%clk 0:00:09]}  gxf4 {[%clk 0:01:29]} 50. gxf4 {[%clk 0:00:08]}  Rb3+ {[%clk 0:01:24]} 51. Kc6 {[%clk 0:00:07]}  Rb2 {[%clk 0:01:24]} 52. Kc7 {[%clk 0:00:07]}  c4 {[%clk 0:01:20]} 53. d7 {[%clk 0:00:06]}  Rd2 {[%clk 0:01:20]} 54. d8=Q {[%clk 0:00:06]}  Rxd8 {[%clk 0:01:17]} 55. Kxd8 {[%clk 0:00:06]}  b5 {[%clk 0:01:16]} 56. Rxa2 {[%clk 0:00:06]}  b4 {[%clk 0:01:17]} 57. Ra1 {[%clk 0:00:06]}  b3 {[%clk 0:01:16]} 58. Ra6+ {[%clk 0:00:05]}  Kd5 {[%clk 0:01:11]} 59. Rb6 {[%clk 0:00:06]}  Kc5 {[%clk 0:01:10]} 60. Rb8 {[%clk 0:00:05]}  Kd4 {[%clk 0:01:07]} 61. h4 {[%clk 0:00:05]}  Kc3 {[%clk 0:01:06]} 62. h5 {[%clk 0:00:04]}  Kc2 {[%clk 0:01:07]} 63. h6 {[%clk 0:00:04]}  b2 {[%clk 0:01:07]} 64. h7 {[%clk 0:00:03]}  b1=Q {[%clk 0:01:08]} 65. Rxb1 {[%clk 0:00:02]}  Kxb1 {[%clk 0:01:09]} 66. h8=Q {[%clk 0:00:01]}  c3 {[%clk 0:01:10]} 67. Qf6 {[%clk 0:00:01]}  c2 {[%clk 0:01:09]} 68. Qb6+ {[%clk 0:00:02]}  Kc1 {[%clk 0:01:09]} 69. Qe3+ {[%clk 0:00:02]}  Kd1 {[%clk 0:01:09]} 70. Qd3+ {[%clk 0:00:02]}  Kc1 {[%clk 0:01:08]} 71. f5 {[%clk 0:00:02]}  Kb2 {[%clk 0:01:08]} 72. Qxc2+ {[%clk 0:00:03]}  Kxc2 {[%clk 0:01:08]} 73. e6 {[%clk 0:00:03]}  fxe6 {[%clk 0:01:08]} 74. fxe6 {[%clk 0:00:04]}  Kd3 {[%clk 0:01:09]} 75. e7 {[%clk 0:00:04]}  Kd4 {[%clk 0:01:10]} 76. e8=Q {[%clk 0:00:05]}  Kd5 {[%clk 0:01:09]} 77. Qe7 {[%clk 0:00:06]}  Kd4 {[%clk 0:01:09]} 78. Qf6+ {[%clk 0:00:06]}  Ke4 {[%clk 0:01:10]} 79. Kd7 {[%clk 0:00:07]}  Kd5 {[%clk 0:01:09]} 80. Qf5+ {[%clk 0:00:07]} 1-0


[Site "https://www.chess.com"]